bitfinex/quotes_SOLUSD_20251119
["timestamp","ask_amount","ask_price","bid_price","bid_amount"]
[1763576632288,13.15518243,131.64,131.59,21.10401012]
[1763576632452,13.15518243,131.64,131.6,0.69]
[1763576632856,13.15518243,131.64,131.59,9.78882769]
[1763576632857,11.31518243,131.63,131.59,9.78882769]
[1763576633069,11.31518243,131.63,131.6,0.69]
[1763576633282,11.31518243,131.61,131.58,0.69]
[1763576633468,11.31518243,131.61,131.57,9.78882769]
[1763576633664,11.31518243,131.61,131.58,0.69]
[1763576633884,11.31518243,131.59,131.55,0.69]
[1763576634274,13.15518243,131.61,131.56,21.10401012]
[1763576634467,11.31518243,131.59,131.56,9.78882769]
[1763576634680,11.31518243,131.59,131.56,0.69]
[1763576636489,1.84,131.61,131.56,29.39484606]
[1763576636793,13.15518243,131.61,131.56,29.39484606]
[1763576636995,11.31518243,131.61,131.57,0.69]
[1763576637578,11.31518243,131.6,131.55,0.69]
[1763576637894,11.31518243,131.58,131.55,0.69]
[1763576638305,1.84,131.59,131.55,0.69]
[1763576638504,11.31518243,131.58,131.55,0.69]
[1763576638809,11.31518243,131.58,131.54,9.88882769]
[1763576638989,11.31518243,131.58,131.55,0.69]
[1763576640797,0.56,131.58,131.54,0.1]
[1763576641108,0.56,131.57,131.54,0.1]
[1763576641402,11.31518243,131.55,131.54,0.1]
[1763576641592,13.15518243,131.57,131.54,0.79]
[1763576641794,1.84,131.57,131.54,0.79]
[1763576641979,13.15518243,131.57,131.54,0.79]
[1763576642179,1.84,131.57,131.54,0.79]
[1763576642688,13.15518243,131.57,131.54,0.1]
[1763576642886,11.31518243,131.56,131.54,0.1]
[1763576643203,1.84,131.57,131.54,0.1]
[1763576643204,13.15518243,131.57,131.54,0.1]
[1763576643382,11.31518243,131.56,131.54,0.1]
[1763576644193,11.31518243,131.56,131.54,0.79]
[1763576644903,1.84,131.57,131.54,0.79]
[1763576645478,13.15518243,131.57,131.54,0.79]
[1763576645678,13.15518243,131.57,131.54,0.1]
[1763576645884,13.15518243,131.57,131.54,0.79]
[1763576646085,1.84,131.57,131.54,0.79]
[1763576646301,11.31518243,131.59,131.54,0.79]
[1763576646505,11.31518243,131.59,131.55,9.78882769]
[1763576646930,31.27614243,131.6,131.56,0.69]
[1763576647086,11.31518243,131.58,131.54,0.1]
[1763576647287,29.43614243,131.55,131.54,0.1]
[1763576647512,34.52299612,131.55,131.51,0.1]
[1763576647700,29.43614243,131.52,131.51,0.1]
[1763576647902,6.68278884,131.57,131.51,0.79]
[1763576648107,29.43614243,131.54,131.51,0.79]
[1763576648293,29.43614243,131.54,131.51,0.1]
[1763576648294,13.15518243,131.53,131.51,0.1]
[1763576648615,29.43614243,131.54,131.51,0.79]
[1763576648795,1.84,131.55,131.51,19.70915236]
[1763576648993,1.84,131.55,131.51,12.10518243]
[1763576649301,1.84,131.55,131.52,0.69]
[1763576649494,1.84,131.55,131.51,0.1]
[1763576649695,1.84,131.55,131.41,0.1]
[1763576649696,1.99999999,131.49,131.41,0.1]
[1763576649888,11.31518243,131.42,131.41,0.1]
[1763576650086,22.94401012,131.42,131.41,0.1]
[1763576650289,34.25254397,131.42,131.41,0.1]
[1763576650523,18.24092744,131.42,131.33,0.69]
[1763576650806,17.64774033,131.37,131.33,0.69]
[1763576650986,13.25830291,131.36,131.31,0.69]
[1763576651186,5.08574501,131.35,131.31,0.69]
[1763576651386,1.84,131.36,131.31,0.69]
[1763576651821,1.84,131.36,131.25,746.0]
[1763576651822,1.84,131.36,131.25,747.84]
[1763576651987,1.84,131.36,131.31,0.69]
[1763576652188,18.12096,131.38,131.31,0.69]
[1763576652392,11.37809314,131.37,131.31,0.69]
[1763576652710,5.04553524,131.36,131.31,0.69]
[1763576652912,5.04553524,131.35,131.33,11.31518243]
[1763576653112,6.3325579,131.41,131.34,1.84]
[1763576653292,11.31518243,131.41,131.34,1.84]
[1763576653492,7.0525579,131.41,131.34,1.86]
[1763576653723,11.31518243,131.38,131.32,0.69]
[1763576653895,11.31518243,131.38,131.32,12.00518243]
[1763576654095,12.03518243,131.38,131.32,0.69]
[1763576654294,11.31518243,131.37,131.32,0.69]
[1763576654495,0.72,131.37,131.32,0.69]
[1763576654797,6.3325579,131.4,131.32,18.81096]
[1763576655020,6.3325579,131.4,131.33,9.78882769]
[1763576655021,2.58,131.39,131.33,9.78882769]
[1763576655186,2.58,131.39,131.32,0.69]
[1763576655391,19.98096,131.39,131.33,11.31518243]
[1763576655715,18.84096,131.41,131.33,9.78882769]
[1763576655896,8.44341053,131.44,131.34,0.69]
[1763576655897,7.0525579,131.43,131.34,0.69]
[1763576657502,18.12096,131.26,131.25,746.0]
[1763576657699,1.86,131.27,131.25,746.0]
[1763576658017,1.86,131.29,131.25,746.0]
[1763576658387,11.31518243,131.26,131.25,746.0]
[1763576658901,12.03518243,131.26,131.25,746.0]
[1763576659411,13.89518243,131.26,131.25,746.0]
[1763576659717,7.61713212,131.29,131.25,746.0]
[1763576659718,29.43614243,131.29,131.25,746.0]
[1763576659894,1.86,131.32,131.25,746.0]
[1763576660103,18.12096,131.36,131.25,746.0]
[1763576660104,0.71,131.33,131.25,746.0]
[1763576660391,18.12096,131.31,131.25,696.85]
[1763576660617,11.31518243,131.26,131.25,696.23]
[1763576660827,42.61132486,131.26,131.25,571.43273434]
[1763576661042,13.17518243,131.26,131.25,571.43273434]
[1763576661199,34.10883201,131.26,131.25,571.43273434]
[1763576661397,34.10883201,131.26,131.25,376.86533848]
[1763576661597,26.49036485,131.26,131.25,320.1380009]
[1763576661797,26.49036485,131.26,131.25,118.09859153]
[1763576661798,11.47846715,131.26,131.25,118.09859153]
[1763576662021,43.03763511,131.26,131.25,26.48152075]
[1763576662196,20.12095999,131.23,131.18,17.61363636]
[1763576662402,11.31518243,131.19,131.18,17.61363636]
[1763576663099,13.31518242,131.31,131.18,25.95674616]
[1763576663408,1.88,131.29,131.19,2.6]
[1763576663617,11.31518243,131.26,131.19,13.91518243]
[1763576663921,11.31518243,131.27,131.21,18.12096]
[1763576664222,11.31518243,131.29,131.22,11.31518243]
[1763576664399,11.31518243,131.28,131.23,1.88]
[1763576664718,1.88,131.35,131.24,18.12096]
[1763576664930,3.87999999,131.36,131.25,1.88]
[1763576665098,11.31518243,131.28,131.25,2.6]
[1763576665299,11.31518243,131.28,131.26,1.88]
[1763576665498,11.31518243,131.28,131.26,2.6]
[1763576665715,9.49306664,131.36,131.27,0.72]
[1763576665716,11.31518243,131.29,131.27,0.72]
[1763576665919,9.49306664,131.36,131.27,0.72]
[1763576665920,11.31518243,131.3,131.27,0.72]
[1763576666131,20.00096,131.39,131.27,0.72]
[1763576666428,11.31518243,131.33,131.28,1.88]
[1763576666726,11.31518243,131.32,131.28,1.88]
[1763576666932,18.12096,131.37,131.28,2.6]
[1763576667225,20.00096,131.36,131.28,1.88]
[1763576667401,27.61386146,131.36,131.28,1.88]
[1763576667603,11.31518243,131.29,131.27,1.88]
[1763576667806,18.12096,131.32,131.27,1.88]
[1763576667807,11.31518243,131.28,131.27,1.88]
[1763576667999,11.31518243,131.29,131.27,1.88]
[1763576668205,18.12096,131.33,131.27,1.88]
[1763576668536,11.31518243,131.32,131.28,2.6]
[1763576668909,11.31518243,131.33,131.29,0.72]
[1763576669303,11.31518243,131.31,131.29,0.72]
[1763576670137,11.31518243,131.3,131.29,1.88]
[1763576670315,11.31518243,131.3,131.28,1.88]
[1763576670513,18.12096,131.33,131.28,1.88]
[1763576670700,11.31518243,131.29,131.28,2.6]
[1763576671026,18.12096,131.33,131.28,2.6]
[1763576671233,11.31518243,131.29,131.28,1.88]
[1763576671407,11.31518243,131.29,131.28,2.6]
[1763576671604,11.31518243,131.3,131.28,2.6]
[1763576671808,9.49279318,131.36,131.29,0.72]
[1763576672005,11.31518243,131.33,131.29,0.72]
[1763576672304,18.12096,131.36,131.29,0.72]
[1763576672514,11.31518243,131.33,131.29,0.72]
[1763576672718,11.31518243,131.35,131.3,27.90978769]
[1763576673123,11.31518243,131.34,131.31,0.72]
[1763576673330,11.31518243,131.34,131.32,1.88]
[1763576673506,9.78882769,131.39,131.33,1.88]
[1763576673707,11.31518243,131.34,131.33,2.6]
[1763576674030,27.90978769,131.39,131.33,1.88]
[1763576674212,11.31518243,131.34,131.33,1.88]
[1763576675128,11.31518243,131.34,131.32,1.88]
[1763576675331,11.31518243,131.33,131.31,0.72]
[1763576675543,9.78882769,131.37,131.32,1.88]
[1763576675735,9.78882769,131.38,131.32,1.88]
[1763576675936,9.78882769,131.38,131.33,1.88]
[1763576676846,11.31518243,131.34,131.33,1.88]
[1763576677549,9.78882769,131.38,131.3,7.61607617]
[1763576677748,11.31518243,131.34,131.33,0.72]
[1763576677951,18.12096,131.39,131.33,0.72]
[1763576678151,11.31518243,131.34,131.33,0.72]
[1763576679250,11.31518243,131.34,131.33,2.6]
[1763576679582,11.31518243,131.34,131.32,1.88]
[1763576679839,11.31518243,131.33,131.31,1.88]
[1763576680038,11.31518243,131.32,131.31,1.88]
[1763576680255,11.31518243,131.32,131.28,0.72]
[1763576680414,18.12096,131.36,131.29,1.88]
[1763576680415,14.74618852,131.35,131.29,1.88]
[1763576680617,11.31518243,131.3,131.29,1.88]
[1763576680846,4.95736083,131.34,131.29,1.88]
[1763576681139,9.78882769,131.35,131.29,1.88]
[1763576681140,11.31518243,131.3,131.29,1.88]
[1763576681559,11.31518243,131.3,131.29,2.6]
[1763576681731,11.31518243,131.31,131.29,2.6]
[1763576681917,11.31518243,131.3,131.26,0.72]
[1763576682119,11.31518243,131.28,131.27,0.72]
[1763576682431,9.78882769,131.33,131.27,2.6]
[1763576682626,11.31518243,131.28,131.27,2.6]
[1763576682826,7.26251849,131.28,131.27,2.6]
[1763576683553,7.26251849,131.28,131.22,0.72]
[1763576683554,40.26335202,131.28,131.22,0.72]
[1763576683851,25.38347849,131.28,131.23,1.88]
[1763576684027,18.12096,131.28,131.18,44.2942851]
[1763576684232,6.97025938,131.27,131.18,17.61363636]
[1763576684436,9.78882769,131.22,131.18,17.61363636]
[1763576684639,14.75908708,131.22,131.18,17.61363636]
[1763576684835,7.26251849,131.19,131.18,17.61363636]
[1763576685036,4.97025939,131.22,131.18,17.61363636]
[1763576685254,18.12096,131.23,131.18,17.61363636]
[1763576685440,7.26251849,131.2,131.19,1.88]
[1763576685849,7.26251849,131.22,131.19,2.6]
[1763576686055,7.26251849,131.23,131.2,0.72]
[1763576686291,4.96675837,131.25,131.2,0.72]
[1763576686474,7.26251849,131.22,131.2,0.72]
[1763576686645,4.96675837,131.25,131.2,0.72]
[1763576686974,7.26251849,131.26,131.2,0.72]
[1763576687163,4.96675837,131.28,131.2,7.98251849]
[1763576687367,7.26251849,131.28,131.21,7.26251849]
[1763576687554,7.26251849,131.29,131.23,7.26251849]
[1763576687749,7.26251849,131.29,131.24,1.88]
[1763576688070,7.26251849,131.31,131.25,7.26251849]
[1763576688271,4.96675837,131.33,131.25,7.98251849]
[1763576688465,7.26251849,131.31,131.26,0.72]
[1763576688973,12.22927686,131.32,131.26,0.72]
[1763576689172,7.26251849,131.31,131.26,0.72]
[1763576689654,7.26251849,131.31,131.26,8.33837976]
[1763576689856,7.26251849,131.31,131.26,0.72]
[1763576690048,7.26251849,131.31,131.27,0.69]
[1763576690250,4.96675837,131.31,131.28,1.88]
[1763576690656,4.96675837,131.32,131.29,0.69]
[1763576690978,12.22927686,131.31,131.3,1.88]
[1763576691179,4.96675837,131.31,131.3,1.88]
[1763576691549,12.22927686,131.31,131.26,0.69]
[1763576691749,4.96675837,131.3,131.27,2.57]
[1763576691977,7.26251849,131.31,131.27,2.57]
[1763576691978,4.96675837,131.29,131.28,1.88]
[1763576692177,4.96675837,131.29,131.25,7.26251849]
[1763576692178,4.96675837,131.29,131.25,0.69]
[1763576692377,4.96675837,131.28,131.22,0.69]
[1763576692554,7.26251849,131.26,131.23,1.88]
[1763576692755,4.96675837,131.25,131.24,7.26251849]
[1763576692964,5.00701309,131.25,131.24,7.95251849]
[1763576693165,4.28701309,131.25,131.24,7.95251849]
[1763576693967,25.38347849,131.32,131.24,7.95251849]
[1763576694167,13.59507639,131.32,131.26,7.26251849]
[1763576694479,13.59507639,131.32,131.27,1.88]
[1763576694777,7.26251849,131.32,131.27,2.57]
[1763576694982,7.26251849,131.32,131.28,0.69]
[1763576695352,7.26251849,131.32,131.27,1.88]
[1763576695572,7.26251849,131.32,131.28,0.69]
[1763576695786,0.69,131.33,131.28,0.69]
[1763576696152,7.26251849,131.32,131.28,0.69]
[1763576696502,6.3325579,131.35,131.29,7.26251849]
[1763576696658,7.26251849,131.36,131.3,7.26251849]
[1763576696989,7.26251849,131.36,131.31,1.88]
[1763576697200,18.12096,131.36,131.31,1.88]
[1763576697491,26.07347849,131.36,131.31,2.57]
[1763576697687,25.38347849,131.36,131.31,2.57]
[1763576697986,18.12096,131.36,131.32,0.69]
[1763576698282,0.2,131.4,131.32,0.69]
[1763576698478,7.26251849,131.36,131.33,1.88]
[1763576698682,7.26251849,131.35,131.34,1.88]
[1763576698886,0.69,131.38,131.34,1.88]
[1763576699060,7.26251849,131.36,131.34,1.88]
[1763576699255,7.26251849,131.35,131.31,0.69]
[1763576699487,0.69,131.38,131.32,1.88]
[1763576699488,7.26251849,131.34,131.32,1.88]
[1763576699660,14.87713701,131.33,131.27,0.69]
[1763576699992,7.26251849,131.31,131.28,1.88]
[1763576700358,18.12096,131.34,131.29,2.57]
[1763576700584,7.26251849,131.34,131.29,2.57]
[1763576700881,7.26251849,131.34,131.3,0.69]
[1763576701083,7.26251849,131.34,131.29,2.57]
[1763576701387,7.26251849,131.34,131.3,0.69]
[1763576701599,7.95251849,131.36,131.3,7.95251849]
[1763576701873,7.26251849,131.34,131.31,1.88]
[1763576702117,7.26251849,131.34,131.3,0.69]
[1763576702289,18.81096,131.37,131.32,1.88]
[1763576702490,25.38347849,131.36,131.32,1.88]
[1763576702667,7.26251849,131.35,131.32,1.88]
[1763576703380,18.12096,131.36,131.32,1.88]
[1763576703585,7.26251849,131.35,131.32,1.88]
[1763576703763,7.26251849,131.35,131.33,1.88]
[1763576703964,8.30286451,131.36,131.33,1.88]
[1763576704162,0.69,131.35,131.28,0.69]
[1763576704482,25.38347849,131.36,131.29,1.88]
[1763576704658,7.26251849,131.31,131.29,1.88]
[1763576705061,7.95251849,131.3,131.24,0.69]
[1763576705361,7.26251849,131.27,131.19,7.62241279]
[1763576705557,5.74152775,131.28,131.21,0.69]
[1763576705801,7.26251849,131.26,131.21,0.69]
[1763576705981,7.26251849,131.24,131.22,1.88]
[1763576706181,7.26251849,131.24,131.23,1.88]
[1763576706579,0.69,131.25,131.23,1.88]
[1763576706899,5.05152775,131.26,131.24,0.69]
[1763576707077,7.26251849,131.26,131.22,0.69]
[1763576707472,7.26251849,131.26,131.23,1.88]
[1763576707791,5.05152775,131.28,131.24,1.88]
[1763576707975,7.26251849,131.27,131.24,1.88]
[1763576708600,7.26251849,131.27,131.24,2.57]
[1763576709206,7.26251849,131.26,131.24,2.57]
[1763576709700,7.26251849,131.26,131.21,7.95251849]
[1763576709871,7.26251849,131.26,131.25,1.88]
[1763576710774,26.07347849,131.26,131.18,17.61363636]
[1763576710975,7.26251849,131.21,131.18,18.30363636]
[1763576711182,18.12096,131.22,131.18,17.61363636]
[1763576711384,18.12096,131.22,131.19,1.88]
[1763576711575,0.69,131.21,131.18,17.61363636]
[1763576711776,7.62195121,131.2,131.19,1.88]
[1763576711990,7.62195121,131.2,131.18,17.61363636]
[1763576712204,8.31195121,131.2,131.19,1.88]
[1763576712370,20.64180372,131.2,131.19,1.88]
[1763576712778,20.64180372,131.2,131.18,17.61363636]
[1763576712779,5.06733402,131.2,131.18,17.61363636]
[1763576713011,7.26251849,131.2,131.19,1.88]
[1763576713218,7.26251849,131.2,131.18,17.61363636]
[1763576713370,18.12096,131.2,131.18,18.78363636]
[1763576713570,7.26251849,131.19,131.18,16.90363636]
[1763576713813,7.26251849,131.19,131.18,18.78363636]
[1763576714624,14.88505069,131.19,131.18,18.78363636]
[1763576714908,7.6225322,131.19,131.18,18.78363636]
[1763576715207,7.26251849,131.19,131.18,18.78363636]
[1763576715799,18.12096,131.2,131.18,18.78363636]
[1763576716105,7.26251849,131.19,131.18,18.78363636]
[1763576716495,18.12096,131.19,131.18,16.90363636]
[1763576716807,7.26251849,131.19,131.18,18.78363636]
[1763576716991,7.26251849,131.19,131.18,16.90363636]
[1763576717485,7.26251849,131.19,131.18,18.78363636]
[1763576717902,33.00601069,131.19,131.18,18.78363636]
[1763576718107,14.88505069,131.19,131.18,18.78363636]
[1763576718615,24.67387838,131.19,131.18,16.90363636]
[1763576718780,29.71113039,131.19,131.18,16.90363636]
[1763576718976,12.65978421,131.19,131.18,16.90363636]
[1763576719280,33.00601069,131.19,131.18,16.90363636]
[1763576719492,38.0432627,131.19,131.18,16.90363636]
[1763576719674,7.61846716,131.26,131.18,17.60363636]
[1763576719885,44.62293618,131.27,131.19,1.88]
[1763576720086,7.26251849,131.22,131.19,2.58]
[1763576720278,7.61730832,131.28,131.2,0.7]
[1763576720477,7.26251849,131.25,131.2,0.7]
[1763576720708,7.26251849,131.24,131.2,0.7]
[1763576720913,7.26251849,131.25,131.2,0.7]
[1763576721079,5.03182684,131.31,131.22,7.26251849]
[1763576721278,26.65121902,131.33,131.2,0.7]
[1763576721279,7.26251849,131.27,131.23,1.88]
[1763576721483,18.12096,131.29,131.23,1.88]
[1763576721683,7.26251849,131.28,131.24,0.7]
[1763576722190,7.26251849,131.27,131.24,0.7]
[1763576722517,18.12096,131.3,131.24,0.7]
[1763576722823,7.26251849,131.36,131.25,7.26251849]
[1763576722987,14.87529334,131.36,131.24,0.7]
[1763576723319,14.87529334,131.36,131.25,2.58]
[1763576723320,7.26251849,131.3,131.25,2.58]
[1763576723505,9.78882769,131.34,131.26,0.7]
[1763576723809,7.26251849,131.28,131.27,1.88]
[1763576724181,7.26251849,131.28,131.22,25.38347849]
[1763576724382,7.26251849,131.28,131.23,2.58]
[1763576724591,7.26251849,131.28,131.23,0.7]
[1763576724804,37.15870157,131.32,131.24,9.84251849]
[1763576724805,18.12096,131.32,131.24,9.84251849]
[1763576725017,7.26251849,131.31,131.26,0.7]
[1763576725524,2.08,131.4,131.27,7.26251849]
[1763576725810,2.08,131.4,131.29,7.26251849]
[1763576725811,7.26251849,131.35,131.29,7.26251849]
[1763576725988,7.26251849,131.33,131.28,1.88]
[1763576726313,7.26251849,131.33,131.29,0.69]
[1763576726610,19.03197981,131.36,131.3,1.88]
[1763576726907,7.26251849,131.33,131.3,1.88]
[1763576727113,18.12096,131.34,131.31,0.69]
[1763576727415,9.78882769,131.42,131.31,0.69]
[1763576727718,7.26251849,131.36,131.31,0.69]
[1763576727909,25.38347849,131.37,131.31,7.95251849]
[1763576728107,0.2,131.4,131.32,7.95251849]
[1763576728316,7.81036193,131.4,131.33,7.95251849]
[1763576728499,7.81036193,131.4,131.3,1.88]
[1763576728500,18.12096,131.37,131.34,2.57]
[1763576729020,7.26251849,131.39,131.35,0.69]
[1763576729227,7.46251849,131.4,131.35,0.69]
[1763576729388,25.58347849,131.4,131.35,7.95251849]
[1763576729586,7.46251849,131.4,131.35,7.95251849]
[1763576729894,0.2,131.4,131.36,0.69]
[1763576730110,7.26251849,131.38,131.37,1.88]
[1763576730283,7.81059,131.4,131.37,1.88]
[1763576730604,25.38347849,131.38,131.37,1.88]
[1763576731006,25.38347849,131.38,131.34,0.69]
[1763576731212,25.93141964,131.4,131.35,1.88]
[1763576731398,7.26251849,131.36,131.35,1.88]
[1763576731598,7.26251849,131.36,131.32,0.69]
[1763576731802,5.03274858,131.39,131.35,1.88]
[1763576732032,18.12096,131.37,131.35,2.57]
[1763576732188,18.12096,131.37,131.35,1.88]
[1763576732888,7.26251849,131.36,131.35,1.88]
[1763576733091,7.26251849,131.36,131.35,2.57]
[1763576733822,25.73308823,131.37,131.35,2.57]
[1763576733995,7.26251849,131.36,131.35,2.57]
[1763576734194,14.87518596,131.36,131.35,1.88]
[1763576734406,14.87518596,131.36,131.32,0.69]
[1763576734407,22.13770445,131.36,131.28,0.69]
[1763576734614,7.26251849,131.29,131.28,0.69]
[1763576734818,7.26251849,131.29,131.18,16.90363636]
[1763576734819,7.26251849,131.29,131.24,0.69]
[1763576734986,18.12096,131.33,131.18,16.90363636]
[1763576734987,14.81299847,131.32,131.28,1.86]
[1763576735183,5.02417078,131.32,131.28,1.86]
[1763576735415,18.12096,131.32,131.29,0.69]
[1763576735586,33.90685465,131.36,131.29,0.69]
[1763576735792,18.12096,131.33,131.29,0.69]
[1763576736224,25.73594629,131.32,131.3,1.86]
[1763576736516,7.26251849,131.31,131.27,0.69]
[1763576736809,25.73594629,131.32,131.28,1.86]
[1763576737010,18.12096,131.32,131.29,0.69]
[1763576737509,7.26251849,131.31,131.3,1.86]
[1763576738086,7.26251849,131.31,131.3,2.55]
[1763576738589,7.26251849,131.31,131.3,1.86]
[1763576738790,18.12096,131.32,131.3,2.55]
[1763576739012,7.26251849,131.31,131.3,2.55]
[1763576739311,7.26251849,131.31,131.3,1.86]
[1763576739817,25.7360504,131.32,131.3,2.55]
[1763576740010,7.26251849,131.31,131.3,2.55]
[1763576740311,25.7360504,131.32,131.3,1.86]
[1763576740520,7.26251849,131.31,131.3,1.86]
[1763576740699,7.26251849,131.31,131.3,2.55]
[1763576741307,7.26251849,131.31,131.3,1.86]
[1763576742194,7.26251849,131.31,131.28,0.69]
[1763576742395,25.73640746,131.32,131.29,1.86]
[1763576742715,25.38347849,131.32,131.29,1.86]
[1763576742922,29.49566955,131.32,131.3,0.69]
[1763576743509,18.12096,131.32,131.3,0.69]
[1763576743705,29.49566955,131.32,131.3,0.69]
[1763576744498,18.12096,131.32,131.3,0.69]
[1763576744722,29.49566955,131.32,131.3,0.69]
[1763576746316,37.11066363,131.32,131.3,0.69]
[1763576746501,18.12096,131.32,131.31,1.86]
[1763576746708,56.14816458,131.32,131.31,1.86]
[1763576746910,25.7359893,131.32,131.31,2.55]
[1763576747110,29.49566955,131.32,131.31,2.55]
[1763576747811,18.12096,131.32,131.31,2.55]
[1763576748015,18.12096,131.36,131.31,2.55]
[1763576748319,11.37470955,131.34,131.32,0.69]
[1763576748705,11.37470955,131.34,131.23,1.99999999]
[1763576748902,11.37470955,131.34,131.22,18.12096]
[1763576748903,11.37470955,131.31,131.24,0.69]
[1763576749131,11.37470955,131.32,131.26,11.37470955]
[1763576749435,44.76751516,131.35,131.28,11.37470955]
[1763576749436,11.37470955,131.33,131.28,11.37470955]
[1763576749615,11.37470955,131.33,131.29,0.69]
[1763576749813,18.12096,131.34,131.3,1.86]
[1763576750032,29.49566955,131.34,131.3,1.86]
[1763576750245,11.37470955,131.32,131.3,0.66]
[1763576750428,11.37470955,131.33,131.31,1.86]
[1763576750603,11.37470955,131.33,131.31,2.52]
[1763576750808,29.49566955,131.34,131.32,0.66]
[1763576751312,25.7342401,131.35,131.32,0.66]
[1763576751531,11.37470955,131.34,131.32,0.66]
[1763576752220,11.37470955,131.35,131.32,0.66]
[1763576752738,11.37470955,131.35,131.33,1.86]
[1763576753217,11.37470955,131.35,131.34,0.66]
[1763576753933,19.02973261,131.38,131.34,0.66]
[1763576753934,11.37470955,131.37,131.34,0.66]
[1763576754332,7.61184004,131.38,131.34,0.66]
[1763576754531,19.0287715,131.38,131.3,0.66]
[1763576754738,19.0287715,131.38,131.31,0.66]
[1763576754739,11.37470955,131.34,131.31,0.66]
[1763576754943,11.37470955,131.34,131.32,1.86]
[1763576755147,18.12096,131.36,131.32,1.86]
[1763576755316,18.12096,131.36,131.33,0.66]
[1763576756341,37.10837137,131.36,131.33,0.66]
[1763576756538,29.49566955,131.36,131.33,0.66]
[1763576756839,11.37470955,131.35,131.31,0.66]
[1763576757147,11.37470955,131.35,131.34,1.86]
[1763576757346,44.76560003,131.36,131.34,1.86]
[1763576757516,11.37470955,131.35,131.34,1.86]
[1763576758039,11.37470955,131.35,131.34,2.52]
[1763576758742,11.37470955,131.36,131.34,2.52]
[1763576758949,11.37470955,131.35,131.34,2.52]
[1763576759449,11.37470955,131.35,131.29,11.37470955]
[1763576759656,11.37470955,131.33,131.31,0.66]
[1763576759851,18.12096,131.32,131.28,0.66]
[1763576760146,11.37470955,131.29,131.26,0.66]
[1763576760316,11.37470955,131.27,131.23,0.66]
[1763576760514,11.37470955,131.24,131.21,0.66]
[1763576760714,11.37470955,131.22,131.21,0.66]
[1763576760916,18.12096,131.26,131.21,2.52]
[1763576761349,18.12096,131.25,131.22,0.66]
[1763576761653,11.37470955,131.25,131.22,0.66]
[1763576761851,7.61618279,131.3,131.22,0.66]
[1763576762058,11.37470955,131.27,131.22,12.03470955]
[1763576762232,11.37470955,131.25,131.22,0.66]
[1763576762440,11.37470955,131.24,131.22,0.66]
[1763576762757,11.37470955,131.24,131.23,1.86]
[1763576763119,5.04846002,131.27,131.23,1.86]
[1763576763323,11.37470955,131.24,131.21,0.66]
[1763576763522,18.12096,131.25,131.19,0.66]
[1763576763719,11.37470955,131.22,131.2,2.52]
[1763576763941,11.37470955,131.21,131.2,2.52]
[1763576765047,12.68329979,131.21,131.18,16.90363636]
[1763576765429,12.68329979,131.21,131.19,1.86]
[1763576765755,11.37470955,131.2,131.19,1.86]
[1763576766448,24.23317795,131.27,131.19,1.86]
[1763576766449,9.78882769,131.29,131.19,2.52]
[1763576766654,11.37470955,131.23,131.2,0.66]
[1763576766958,11.37470955,131.24,131.2,0.66]
[1763576768760,11.37470955,131.23,131.2,0.66]
[1763576769269,7.61964863,131.24,131.18,16.90363636]
[1763576769424,11.37470955,131.2,131.18,16.90363636]
[1763576769631,11.37470955,131.2,131.19,1.86]
[1763576770241,18.99666076,131.2,131.19,1.86]
[1763576770439,18.99666076,131.2,131.18,16.90363636]
[1763576770664,25.74291121,131.2,131.19,1.86]
[1763576770869,30.78679062,131.2,131.19,1.86]
[1763576771168,23.16483941,131.2,131.19,1.86]
[1763576771466,13.64882768,131.26,131.19,1.86]